fUSD/lending_fUSD_20240612
["ID","MTS","AMOUNT","RATE_DAILY","PERIOD"]
[329266205,1718205072703,-1212.67,0.00022191,2]
[329266206,1718205072713,-991.6,0.00022191,2]
[329266207,1718205072725,-1190.52,0.00022191,2]
[329266208,1718205072736,-1014.23,0.00022191,2]
[329266209,1718205072746,-547.32,0.00022191,2]
[329266210,1718205072758,-780.25,0.00022191,2]
[329266211,1718205072770,-3141.57,0.00022191,2]
[329266212,1718205072782,-670.27,0.00022191,2]
[329266213,1718205072793,-977.65,0.00022191,2]
[329266214,1718205072803,-609.32,0.00022191,2]
[329266215,1718205072815,-963.75,0.00022191,2]
[329266216,1718205072826,-630.42,0.00022191,2]
[329266217,1718205072838,-670.97,0.00022191,2]
[329266218,1718205072851,-2138.16,0.00022191,2]
[329266219,1718205072864,-607.7,0.00022191,2]
[329266220,1718205072876,-650.2,0.00022191,2]
[329266221,1718205072888,-1199.08,0.00022191,2]
[329266222,1718205072898,-2003.87,0.00022191,2]
[329266223,1718205072910,-856.08,0.00022191,2]
[329266224,1718205072922,-2756.64,0.00022191,2]
[329266225,1718205072934,-614.98,0.00022191,2]
[329266226,1718205072946,-1019.92,0.00022191,2]
[329266227,1718205072961,-1351.67,0.00022191,2]
[329266228,1718205072972,-814.36,0.00022191,2]
[329266229,1718205072984,-2577.01,0.00022191,2]
[329266230,1718205072998,-735.78,0.00022191,2]
[329266231,1718205073011,-809.91,0.00022191,2]
[329266232,1718205073023,-1138.78,0.00022191,2]
[329266233,1718205073038,-1692.1,0.00022191,2]
[329266234,1718205073051,-834.93,0.00022191,2]
[329266235,1718205073062,-2527.97,0.00022191,2]
[329266236,1718205073076,-1577.996,0.00022271,2]
[329266237,1718205073095,-1280.748,0.00022271,2]
[329266238,1718205073106,-725.301,0.00022271,2]
[329266239,1718205073117,-255.231,0.00022271,2]
[329266240,1718205073134,-4546.331,0.00022271,2]
[329266241,1718205073145,-24268.065,0.00022271,2]
[329266242,1718205073155,-1065.0,0.00022271,2]
[329266243,1718205073166,-160.44415576,0.00022328,2]
[329266244,1718205073181,-662.13466924,0.00022328,2]
[329266245,1718205073205,-1175.58883761,0.00022328,2]
[329266246,1718205073231,-773.60917657,0.00022328,2]
[329266247,1718205073247,-504.84743887,0.00022328,2]
[329266248,1718205073276,-855.37,0.00022328,2]
[329266249,1718205073288,-586.31,0.00022328,2]
[329266250,1718205073307,-596.44696277,0.00022328,2]
[329266251,1718205073323,-1292.71374826,0.00022328,2]
[329266252,1718205073350,-556.75,0.00022328,2]
[329266253,1718205073362,-499.4,0.00022328,2]
[329266254,1718205073384,-515.9,0.00022328,2]
[329266255,1718205073421,-701.71,0.00022328,2]
[329266256,1718205073433,-1738.83,0.00022328,2]
[329266257,1718205073448,-704.1397889,0.00022328,2]
[329266258,1718205073476,-206.22925578,0.00022328,2]
[329266259,1718205073494,-1166.58,0.00022328,2]
[329266260,1718205073525,-1067.43,0.00022328,2]
[329266261,1718205073540,-561.28,0.00022328,2]
[329266262,1718205073553,-1212.82,0.00022328,2]
[329266263,1718205073563,-991.6,0.00022328,2]
[329266264,1718205073580,-1190.61,0.00022328,2]
[329266265,1718205073599,-1014.2441953,0.00022328,2]
[329266266,1718205073620,-547.46678347,0.00022328,2]
[329266267,1718205073634,-780.46,0.00022328,2]
[329266268,1718205073659,-3141.7,0.00022328,2]
[329266269,1718205073697,-670.48,0.00022328,2]
[329266270,1718205073720,-977.65,0.00022328,2]
[329266271,1718205073736,-609.38,0.00022328,2]
[329266272,1718205073754,-963.81763311,0.00022328,2]
[329266273,1718205073775,-630.64,0.00022328,2]
[329266274,1718205073789,-671.09,0.00022328,2]
[329266275,1718205073803,-2138.22,0.00022328,2]
[329266276,1718205073821,-607.8,0.00022328,2]
[329266277,1718205073836,-650.4,0.00022328,2]
[329266278,1718205073850,-1199.3019994,0.00022328,2]
[329266279,1718205073868,-2004.08,0.00022328,2]
[329266280,1718205073904,-856.29,0.00022328,2]
[329266281,1718205073926,-2756.78,0.00022328,2]
[329266282,1718205073956,-615.04,0.00022328,2]
[329266283,1718205073973,-1019.93798062,0.00022328,2]
[329266284,1718205074012,-1351.79,0.00022328,2]
[329266285,1718205074022,-814.36,0.00022328,2]
[329266286,1718205074039,-2577.13,0.00022328,2]
[329266287,1718205074057,-735.87,0.00022328,2]
[329266288,1718205074069,-810.06,0.00022328,2]
[329266289,1718205074103,-1139.0,0.00022328,2]
[329266290,1718205074115,-1692.22638076,0.00022328,2]
[329266291,1718205074133,-834.95,0.00022328,2]
[329266292,1718205074181,-2528.08009931,0.00022328,2]
[329266293,1718205074196,-453.97,0.00022747,2]
[329266294,1718205074211,-1121.28499847,0.00022987,2]
[329266295,1718205074223,-1300.0,0.00023,2]
[329266296,1718205074246,-170.0,0.00023014,2]
[329266297,1718205074263,-332.11989589,0.00023489,2]
[329266298,1718205074277,-1645.96,0.00023761,2]
[329266299,1718205074288,-155.0,0.000238,2]
[329266300,1718205074299,-2078.54556027,0.00023924,2]
[329266301,1718205074315,-157.7140469,0.00023924,2]
[329266302,1718205074328,-259.40712675,0.00024017,2]
[329266303,1718205074342,-154.89060017,0.00024053,2]
[329266304,1718205074354,-622.68396736,0.00024088,2]
[329266305,1718205074365,-158.32026496,0.00024128,2]
[329266306,1718205074375,-154.89060017,0.00024183,2]
[329266307,1718205074386,-259.40712675,0.00024204,2]
[329266308,1718205074398,-259.40712675,0.00024221,2]
[329266309,1718205074409,-161.09807143,0.00024222,2]
[329266310,1718205074420,-150.20717071,0.00024229,2]
[329266311,1718205074431,-180.0,0.0002423,2]
[329266312,1718205074441,-166.36964742,0.00024235,2]
[329266313,1718205074455,-259.40712675,0.00024255,2]
[329266314,1718205074471,-1000.0,0.0002427,2]
[329266315,1718205074481,-158.32026496,0.00024277,2]
[329266316,1718205074491,-1121.28499847,0.00024291,2]
[329266317,1718205074525,-150.20717071,0.00024303,2]
[329266318,1718205074537,-622.68396736,0.00024304,2]
[329266319,1718205074548,-1050.54,0.00024329,30]
[329266320,1718205074558,-622.68396736,0.0002436,2]
[329266321,1718205074569,-398.6,0.00024384,2]
[329266322,1718205074579,-171.21,0.00024384,2]
[329266323,1718205074591,-155.85048554,0.0002439,2]
[329266324,1718205074601,-152.57735206,0.00024443,2]
[329266325,1718205074614,-259.40712675,0.00024455,2]
[329266326,1718205074626,-152.96395674,0.00024479,2]
[329266327,1718205074637,-159.83965983,0.0002449,2]
[329266328,1718205074647,-622.68396736,0.0002452,2]
[329266329,1718205074658,-159.83965983,0.00024553,2]
[329266330,1718205074668,-622.68396736,0.00024561,2]
[329266331,1718205074678,-622.68396736,0.00024587,2]
[329266332,1718205074694,-622.68396736,0.00024594,2]
[329266333,1718205074705,-210.34781756,0.00024602,2]
[329266334,1718205074716,-622.68396736,0.00024632,2]
[329266335,1718205074727,-156.81577324,0.00024635,2]
[329266336,1718205074738,-156.81577324,0.00024672,2]
[329266337,1718205074751,-156.83098823,0.00024687,2]
[329266338,1718205074762,-156.81577324,0.00024705,2]
[329266339,1718205074775,-159.83965983,0.00024729,2]
[329266340,1718205074787,-154.12214521,0.00024745,2]
[329266341,1718205074798,-154.12214521,0.00024779,2]
[329266342,1718205074808,-259.40712675,0.00024794,2]
[329266343,1718205074818,-161.09807143,0.00024794,2]
[329266344,1718205074830,-500.0,0.00024797,2]
[329266345,1718205074842,-11376.89376544,0.00024798,2]
[329266346,1718205074855,-11376.89376535,0.00024798,2]
[329266347,1718205074866,-11376.89376535,0.00024798,2]
[329266348,1718205074881,-11376.89376535,0.00024798,2]
[329266349,1718205074893,-11376.89376535,0.00024798,2]
[329266350,1718205074907,-11376.89376535,0.00024798,2]
[329266351,1718205074921,-217.7601563,0.00024798,2]
[329266352,1718205074933,-174.16174353,0.000248,2]
[329266353,1718205074945,-159.83965983,0.00024825,2]
[329266354,1718205074956,-6801.38955885,0.000249,2]
[329266355,1718205074966,-155.0,0.000249,2]
[329266356,1718205074977,-1010.42,0.000249,2]
[329266357,1718205074989,-160.69768343,0.00024963,2]
[329266358,1718205075000,-155.0,0.00025,2]
[329266359,1718205075012,-159.1918364,0.00025,2]
[329266360,1718205075022,-155.0,0.00025,2]
[329266361,1718205075036,-155.0,0.00025,2]
[329266362,1718205075047,-326.33400151,0.00025,2]
[329266363,1718205075057,-706.94373209,0.00025,2]
[329266364,1718205075067,-326.20621405,0.00025,2]
[329266365,1718205075079,-930.99721425,0.00025,2]
[329266366,1718205075089,-27787.74937465,0.00025,2]
[329266367,1718205075099,-225.34445904,0.00025,2]
[329266368,1718205075110,-1350.0,0.00025,2]
[329266369,1718205075119,-150.0,0.00025,4]
[329266370,1718205075130,-453.97,0.00025011,2]
[329266371,1718205075140,-161.09807143,0.00025032,2]
[329266372,1718205075150,-156.81577324,0.00025036,2]
[329266373,1718205075160,-500.0,0.0002505,2]
[329266374,1718205075170,-500.0,0.0002505,2]
[329266375,1718205075181,-500.0,0.0002505,2]
[329266376,1718205075194,-500.0,0.0002505,2]
[329266377,1718205075204,-500.0,0.0002505,2]
[329266378,1718205075214,-500.0,0.0002505,2]
[329266379,1718205075225,-155.85048554,0.00025061,2]
[329266380,1718205075237,-151.36047298,0.00025073,2]
[329266381,1718205075252,-151.36047299,0.00025074,2]
[329266382,1718205075262,-622.68396736,0.00025092,2]
[329266383,1718205075272,-622.68396736,0.00025093,2]
[329266384,1718205075286,-158.73126334,0.00025138,2]
[329266385,1718205075297,-155.85048554,0.00025146,2]
[329266386,1718205075321,-259.40712675,0.00025178,2]
[329266387,1718205075334,-1000.0,0.00025205,2]
[329266388,1718205075348,-156.81577324,0.00025225,2]
[329266389,1718205075367,-259.40712675,0.00025269,2]
[329266390,1718205075384,-159.83965983,0.00025371,2]
[329266391,1718205075409,-156.81577324,0.00025476,2]
[329266392,1718205075425,-150.0,0.000255,4]
[329266393,1718205075453,-259.40712675,0.00025501,2]
[329266394,1718205075468,-153.25802497,0.00025508,2]
[329266395,1718205075480,-11376.89376535,0.00025513,2]
[329266396,1718205075498,-1121.28499847,0.00025594,2]
[329266397,1718205075535,-166.65534304,0.00025608,2]
[329266398,1718205075547,-156.81577324,0.0002562,2]
[329266399,1718205075566,-332.11989589,0.00025626,2]
[329266400,1718205075581,-159.83965983,0.0002564,2]
[329266401,1718205075595,-155.85048554,0.00025648,2]
[329266402,1718205075607,-169.64997732,0.00025673,2]
[329266403,1718205075620,-258.0384721,0.00025673,2]
[329266404,1718205075636,-622.68396736,0.00025757,2]
[329266405,1718205075649,-153.39895736,0.00025802,2]
[329266406,1718205075660,-622.68396736,0.00025848,2]
[329266407,1718205075672,-194.1,0.0002589,2]
[329266408,1718205075684,-161.09807143,0.00025925,2]
[329266409,1718205075696,-151.76197193,0.00025936,2]
[329266410,1718205075710,-259.40712675,0.00025954,2]
[329266411,1718205075724,-622.68396736,0.00025963,2]
[329266412,1718205075737,-259.40712675,0.00025965,2]
[329266413,1718205075748,-1010.42,0.00025995,2]
[329266414,1718205075759,-23852.14157762,0.00026,5]
[329266415,1718205075769,-642.0,0.00026,14]
[329266416,1718205075782,-150.0,0.00026,4]
[329266417,1718205075792,-152.0,0.00026005,3]
[329266418,1718205075804,-1500.0,0.00026027,30]
[329266419,1718205075816,-159.83965983,0.00026102,2]
[329266420,1718205075828,-155.85048554,0.00026112,2]
[329266421,1718205075838,-622.68396736,0.00026161,2]
[329266422,1718205075850,-259.40712675,0.00026194,2]
[329266423,1718205075862,-154.12214521,0.00026237,2]
[329266424,1718205075875,-622.68396736,0.00026274,2]
[329266425,1718205075886,-3000.0,0.000263,2]
[329266426,1718205075897,-1500.0,0.00026301,30]
[329266427,1718205075910,-2000.0,0.00026301,3]
[329266428,1718205075924,-259.40712675,0.00026322,2]
[329266429,1718205075937,-507.39957047,0.00026336,2]
[329266430,1718205075950,-188.10968946,0.00026399,2]
[329266431,1718205075965,-1000.0,0.00026476,2]
[329266432,1718205075976,-259.40712675,0.00026477,2]
[329266433,1718205075987,-156.81577324,0.00026491,2]
[329266434,1718205076005,-166.63300067,0.00026492,2]
[329266435,1718205076015,-174.16174353,0.000265,2]
[329266436,1718205076025,-642.0,0.000265,14]
[329266437,1718205076036,-150.0,0.000265,5]
[329266438,1718205076048,-166.66666667,0.00026515,2]
[329266439,1718205076060,-622.68396736,0.00026516,2]
[329266440,1718205076071,-159.83965983,0.00026522,2]
[329266441,1718205076083,-161.15554008,0.00026523,2]
[329266442,1718205076095,-1500.0,0.00026575,30]
[329266443,1718205076110,-156.81577324,0.00026594,2]
[329266444,1718205076122,-595.57459767,0.00026602,2]
[329266445,1718205076134,-11376.89376535,0.00026602,2]
[329266446,1718205076145,-172.72952371,0.00026626,2]
[329266447,1718205076156,-622.68396736,0.00026646,2]
[329266448,1718205076169,-161.09807143,0.00026661,2]
[329266449,1718205076180,-259.40712675,0.00026675,2]
[329266450,1718205076199,-259.40712675,0.00026719,2]
[329266451,1718205076212,-259.40712675,0.00026749,2]
[329266452,1718205076229,-259.40712675,0.00026753,2]
[329266453,1718205076240,-259.40712675,0.00026755,2]
[329266454,1718205076256,-259.40712675,0.00026756,2]
[329266455,1718205076267,-159.83965983,0.00026781,2]
[329266456,1718205076278,-158.32026496,0.00026809,2]
[329266457,1718205076289,-259.40712675,0.00026836,2]
[329266458,1718205076298,-1500.0,0.00026849,30]
[329266459,1718205076308,-152.0,0.00026878,4]
[329266460,1718205076319,-259.40712675,0.00026886,2]
[329266461,1718205076329,-1121.28499847,0.00026897,2]
[329266462,1718205076341,-150.20717071,0.00026922,2]
[329266463,1718205076354,-152.57735206,0.00026936,2]
[329266464,1718205076365,-155.85048554,0.00026955,2]
[329266465,1718205076379,-622.68396736,0.00026997,2]
[329266466,1718205076390,-500.0,0.00026999,2]
[329266467,1718205076404,-41008.17912796,0.00027,2]
[329266468,1718205076414,-155.0,0.00027,4]
[329266469,1718205076425,-155.0,0.00027,2]
[329266470,1718205076435,-16273.41966961,0.00027,2]
[329266471,1718205076773,-2989.95033039,0.00027,2]
[329266472,1718205076785,-642.0,0.00027,15]
[329266473,1718205076796,-150.0,0.00027,2]
[329266474,1718205076808,-1400.0,0.00027,2]
[329266475,1718205076820,-150.0,0.00027,5]
[329266476,1718205076836,-622.68396736,0.00027039,2]
[329266477,1718205076846,-1010.42,0.0002709,2]
[329266478,1718205076858,-150.20717071,0.00027103,2]
[329266479,1718205076868,-622.68396736,0.00027105,2]
[329266480,1718205076880,-156.81577324,0.00027106,2]
[329266481,1718205076891,-1500.0,0.00027123,30]
[329266482,1718205076901,-161.09807143,0.00027167,2]
[329266483,1718205076913,-622.68396736,0.00027181,2]
[329266484,1718205076926,-3865.05048832,0.000272,2]
[329266485,1718205076937,-159.83965983,0.00027208,2]
[329266486,1718205076948,-622.68396736,0.0002724,2]
[329266487,1718205076961,-153.25802497,0.00027249,2]
[329266488,1718205076975,-153.39895736,0.00027268,2]
[329266489,1718205076986,-200.0,0.00027274,2]
[329266490,1718205076999,-500.0,0.00027274,2]
[329266491,1718205077011,-453.97,0.00027275,2]
[329266492,1718205077022,-153.25802497,0.00027302,2]
[329266493,1718205077032,-159.83965983,0.00027315,2]
[329266494,1718205077043,-151.76197193,0.00027332,2]
[329266495,1718205077055,-622.68396736,0.00027382,2]
[329266496,1718205077066,-153.22,0.00027397,2]
[329266497,1718205077076,-1116.14898196,0.00027397,30]
[329266498,1718205077088,-500.0,0.00027397,10]
[329266499,1718205077099,-500.0,0.00027397,10]
[329266500,1718205077109,-500.0,0.00027397,10]
[329266501,1718205077123,-500.0,0.00027397,10]
[329266502,1718205077134,-510.4386381,0.00027397,10]
[329266503,1718205077144,-156.81577324,0.00027397,2]
[329266504,1718205077154,-310.18129949,0.00027397,2]
[329266505,1718205077167,-500.0,0.00027397,2]
[329266506,1718205077177,-500.0,0.00027397,2]
[329266507,1718205077187,-500.0,0.00027397,2]
[329266508,1718205077197,-500.0,0.00027397,2]
[329266509,1718205077208,-500.0,0.00027397,2]
[329266510,1718205077220,-500.0,0.00027397,2]
[329266511,1718205077230,-500.0,0.00027397,2]
[329266512,1718205077241,-500.0,0.00027397,2]
[329266513,1718205077255,-500.0,0.00027397,2]
[329266514,1718205077265,-500.0,0.00027397,2]
[329266515,1718205077278,-500.0,0.00027397,2]
[329266516,1718205077289,-500.0,0.00027397,2]
[329266517,1718205077299,-500.0,0.00027397,2]
[329266518,1718205077311,-384.19165601,0.00027397,2]
[329266519,1718205077324,-500.0,0.00027397,2]
[329266520,1718205077335,-500.0,0.00027397,2]
[329266521,1718205077349,-500.0,0.00027397,2]
[329266522,1718205077364,-167.8,0.00027397,2]
[329266523,1718205077379,-1671.83,0.00027397,2]
[329266524,1718205077392,-150.0,0.00027397,2]
[329266525,1718205077410,-702.63,0.00027397,10]
[329266526,1718205077423,-1047.61,0.00027397,10]
[329266527,1718205077437,-2000.0,0.000274,2]
[329266528,1718205077481,-946.0,0.000274,2]
[329266529,1718205077509,-967.4,0.000274,2]
[329266530,1718205077537,-967.4,0.000274,2]
[329266531,1718205077549,-4854.56,0.00027428,2]
[329266532,1718205077567,-153.39895737,0.00027468,2]
[329266533,1718205077585,-400.17,0.0002748,2]
[329266534,1718205077597,-166.66666668,0.00027488,2]
[329266535,1718205077608,-642.0,0.000275,16]
[329266536,1718205077620,-150.0,0.000275,5]
[329266537,1718205077631,-153.22,0.00027534,2]
[329266538,1718205077646,-259.40712675,0.00027537,2]
[329266539,1718205077667,-151.76197193,0.00027609,2]
[329266540,1718205077692,-156.81577324,0.00027622,2]
[329266541,1718205077708,-976.65,0.00027651,2]
[329266542,1718205077734,-153.22,0.00027671,2]
[329266543,1718205077753,-595.57459767,0.00027691,2]
[329266544,1718205077780,-7466.09515458,0.00027691,2]
[329266545,1718205077797,-2376.88871327,0.00027691,2]
[329266546,1718205077811,-730.07140233,0.00027691,2]
[329266547,1718205077841,-652.62529538,0.00027691,2]
[329266548,1718205077858,-151.21319979,0.00027691,2]
[329266549,1718205077878,-150.20717071,0.0002771,2]
[329266550,1718205077896,-152.0,0.00027752,5]
[329266551,1718205077909,-332.11989589,0.00027763,2]
[329266552,1718205077927,-413.35149323,0.00027771,2]
[329266553,1718205077938,-152.57735206,0.00027774,2]
[329266554,1718205077957,-230.1855894,0.00027785,2]
[329266555,1718205077990,-29.22153735,0.00027785,2]
[329266556,1718205078011,-150.20717071,0.00027791,2]
[329266557,1718205078023,-154.12214521,0.00027798,2]
[329266558,1718205078043,-154.12214521,0.000278,2]
[329266559,1718205078061,-153.22,0.00027808,2]
[329266560,1718205078074,-156.81577324,0.00027829,2]
[329266561,1718205078090,-259.40712675,0.00027847,2]
[329266562,1718205078104,-154.12214521,0.0002785,2]
[329266563,1718205078125,-156.81577324,0.0002787,2]
[329266564,1718205078141,-150.20717071,0.0002787,2]
[329266565,1718205078168,-259.40712675,0.00027894,2]
[329266566,1718205078187,-160.0,0.000279,2]
[329266567,1718205078198,-613.30854381,0.000279,2]
[329266568,1718205078209,-345.0,0.000279,2]
[329266569,1718205078222,-160.0,0.000279,2]
[329266570,1718205078257,-150.0,0.000279,5]
[329266571,1718205078278,-150.0,0.000279,5]
[329266572,1718205078308,-153.22,0.00027945,2]
[329266573,1718205078320,-151.48043344,0.00027962,2]
[329266574,1718205078339,-151.76197194,0.0002797,2]
[329266575,1718205078357,-436.8844913,0.00027973,2]
[329266576,1718205078369,-995.90812,0.0002799,2]
[329266577,1718205078381,-5800.0,0.00027991,2]
[329266578,1718205078398,-813.28405733,0.00027998,2]
[329266579,1718205078430,-1513.35868036,0.00027998,2]
[329266580,1718205078458,-194.02408716,0.00027998,2]
[329266581,1718205078470,-437.68428679,0.00027998,2]
[329266582,1718205078481,-252.33163105,0.00027998,2]
[329266583,1718205078524,-1964.288541,0.00027998,2]
[329266584,1718205078552,-183.41844134,0.00027998,2]
[329266585,1718205078564,-238.00335402,0.00027998,2]
[329266586,1718205078576,-1276.54298382,0.00027998,2]
[329266587,1718205078586,-275.7718618,0.00027998,2]
[329266588,1718205078605,-5071.7116379,0.00027998,2]
[329266589,1718205078621,-691.13880026,0.00027998,2]
[329266590,1718205078638,-649.53295488,0.00027998,2]
[329266591,1718205078648,-157.74108242,0.00027998,2]
[329266592,1718205078660,-5800.0,0.00027999,2]
[329266593,1718205078675,-500.0,0.00027999,2]
[329266594,1718205078693,-469.1675983,0.00028,2]
[329266595,1718205078713,-337.66901818,0.00028,7]
[329266596,1718205078724,-8663.67712307,0.00028,2]
[329266597,1718205078740,-2000.0,0.00028,20]
[329266598,1718205078755,-18313.71796637,0.00028,20]
[329266599,1718205078773,-621.92876496,0.00028,20]
[329266600,1718205078788,-1064.35326867,0.00028,20]
[329266601,1718205078798,-750.56554487,0.00028,2]
[329266602,1718205078809,-2815.47111063,0.00028,14]
[329266603,1718205078837,-478.6711612,0.00028,14]
[329266604,1718205078850,-5305.21991191,0.00028,14]
[329266605,1718205078867,-785.44497192,0.00028,14]
[329266606,1718205078880,-615.19284434,0.00028,14]
[329266607,1718205078892,-224.93127697,0.00028,2]
[329266608,1718205078903,-37.12899469,0.00028,21]
[329266609,1718205079023,-1056.6,0.00020547,2]
[329266610,1718205079035,-1056.6,0.00020684,2]
[329266611,1718205079077,-1056.6,0.00020821,2]
[329266612,1718205079089,-2753.05,0.00021232,2]
[329266613,1718205079121,-2753.05,0.00021369,2]
[329266614,1718205079140,-2753.05,0.00021506,2]
[329266615,1718205079163,-2753.05,0.00021643,2]
[329266616,1718205079178,-10119.16015425,0.00028,21]
[329266617,1718205079194,-10675.66330047,0.00028,21]
[329266618,1718205079209,-706.15,0.00028,10]
[329266619,1718205079230,-558.4601521,0.00028,2]
[329266620,1718205079246,-20000.0,0.00028,7]
[329266621,1718205079265,-12137.42275069,0.00028,15]
[329266622,1718205079280,-3347.79066429,0.00028,2]
[329266623,1718205079296,-601.88629728,0.00028,5]
[329266624,1718205079313,-500.0,0.00028,2]
[329266625,1718205079329,-500.0,0.00028,2]
[329266626,1718205079343,-500.0,0.00028,2]
[329266627,1718205079360,-155.0,0.00028,2]
[329266628,1718205079377,-948.1605804,0.00028,2]
[329266629,1718205079397,-24275.15524434,0.00028,2]
[329266630,1718205079411,-485.50310489,0.00028,2]
[329266631,1718205079427,-300.0,0.00028,2]
[329266632,1718205079441,-420.53167918,0.00028,30]
[329266633,1718205079455,-901.74089862,0.00028,2]
[329266634,1718205079473,-901.74089862,0.00028,2]
[329266635,1718205079497,-901.74089862,0.00028,2]
[329266636,1718205079532,-901.74089862,0.00028,2]
[329266637,1718205079551,-901.74089862,0.00028,2]
[329266638,1718205079565,-901.74089862,0.00028,2]
[329266639,1718205079581,-901.74089862,0.00028,2]
[329266640,1718205079597,-901.74089862,0.00028,2]
[329266641,1718205079614,-901.74089862,0.00028,2]
[329266642,1718205079633,-901.74089862,0.00028,2]
[329266643,1718205079649,-901.74089862,0.00028,2]
[329266644,1718205079668,-901.74089862,0.00028,2]
[329266645,1718205079707,-901.74089862,0.00028,2]
[329266646,1718205079728,-901.74089862,0.00028,2]
[329266647,1718205079754,-901.74089862,0.00028,2]
[329266648,1718205079783,-901.74089862,0.00028,2]
[329266649,1718205079813,-901.74089862,0.00028,2]
[329266650,1718205079826,-901.74089862,0.00028,2]
[329266651,1718205079843,-901.74089862,0.00028,2]
[329266652,1718205079869,-901.74089862,0.00028,2]
[329266653,1718205079888,-901.74089862,0.00028,2]
[329266654,1718205079904,-901.74089862,0.00028,2]
[329266655,1718205079917,-901.74089862,0.00028,2]
[329266656,1718205079935,-901.74089862,0.00028,2]
[329266657,1718205079954,-901.74089862,0.00028,2]
[329266658,1718205079976,-901.74089862,0.00028,2]
[329266659,1718205080002,-901.74089862,0.00028,2]
[329266660,1718205080026,-901.74089862,0.00028,2]
[329266661,1718205080040,-901.74089862,0.00028,2]
[329266662,1718205080054,-901.74089862,0.00028,2]
[329266663,1718205080074,-901.74089862,0.00028,2]
[329266664,1718205080092,-901.74089862,0.00028,2]
[329266665,1718205080106,-901.74089862,0.00028,2]
[329266666,1718205080121,-901.74089862,0.00028,2]
[329266667,1718205080135,-901.74089862,0.00028,2]
[329266668,1718205080149,-901.74089862,0.00028,2]
[329266669,1718205080162,-901.74089862,0.00028,2]
[329266670,1718205080176,-901.74089862,0.00028,2]
[329266671,1718205080189,-901.74089862,0.00028,2]
[329266672,1718205080209,-901.74089862,0.00028,2]
[329266673,1718205080224,-841.78892269,0.00028,2]
[329266674,1718205080239,-841.78892269,0.00028,2]
[329266675,1718205080256,-841.78892269,0.00028,2]
[329266676,1718205080269,-841.78892269,0.00028,2]
[329266677,1718205080282,-841.78892269,0.00028,2]
[329266678,1718205080294,-418.63229806,0.00028,2]
[329266679,1718205080308,-418.63229806,0.00028,2]
[329266680,1718205080321,-418.63229806,0.00028,2]
[329266681,1718205080335,-544.15157436,0.00028,2]
[329266682,1718205080347,-642.0,0.00028,16]
[329266683,1718205080363,-1462.0,0.00028,2]
[329266684,1718205080377,-181.296466,0.00028,5]
[329266685,1718205080393,-1606.23127024,0.00028,2]
[329266686,1718205080407,-1606.23127024,0.00028,2]
[329266687,1718205080424,-1606.23127024,0.00028,2]
[329266688,1718205080438,-1606.23127024,0.00028,2]
[329266689,1718205080456,-1606.23127024,0.00028,2]
[329266690,1718205080471,-1606.23127024,0.00028,2]
[329266691,1718205080486,-1606.23127024,0.00028,2]
[329266692,1718205080503,-1606.23127024,0.00028,2]
[329266693,1718205080531,-1606.23127024,0.00028,2]
[329266694,1718205080544,-1606.23127024,0.00028,2]
[329266695,1718205080556,-1606.23127024,0.00028,2]
[329266696,1718205080568,-1606.23127024,0.00028,2]
[329266697,1718205080581,-1606.23127024,0.00028,2]
[329266698,1718205080595,-1606.23127024,0.00028,2]
[329266699,1718205080621,-1606.23127024,0.00028,2]
[329266700,1718205080633,-1606.23127024,0.00028,2]
[329266701,1718205080646,-1606.23127024,0.00028,2]
[329266702,1718205080665,-1606.23127024,0.00028,2]
[329266703,1718205080677,-1606.23127024,0.00028,2]
[329266704,1718205080696,-1606.23127024,0.00028,2]